Cogmind - Beta 9.6 @@@ ROGUE MODE // 2020.06.22 @ 16:55:07 // Winter2019/RPGLIKE Player: Demise Result: Destroyed by Y-45 Defender with Heavy Assault Rifle Performance ------------- Evolutions (2) 1000 Regions Visited (7) 1400 Robots Destroyed (88) 440 Value Destroyed (2549) 2549 Prototype IDs (5) 100 Alien Tech Used (0) 0 Bonus (256) 256 TOTAL SCORE: 5745 Bonus ------- High Alert Combat Kills 59 Follower Combat Kills 197 Cogmind --------- Core Integrity 0/600 Matter 300/300 Energy 221/250 System Corruption 0% Temperature Cool (18) Movement Treading (145) Location -8/Materials Parts ------- > --- POWER (1) -------- Ion Engine > --- PROPULSION (1) --- Advanced Treads > --- UTILITY (5) ------ Disposable Heat Sink Makeshift Sensor Array Improved Signal Interpreter Improved Terrain Scanner Makeshift Transmission Jammer > --- WEAPON (2) ------- Heavy EM Pulse Gun > --- INVENTORY (5) ---- Protomatter-56 Protomatter-48 Grenade Launcher Plasma Cutter Heavy Mace Peak State ------------ > --- POWER ------------ Ion Engine > --- PROPULSION ------- Advanced Treads > --- UTILITY ---------- Disposable Heat Sink Makeshift Sensor Array Improved Signal Interpreter Improved Terrain Scanner Makeshift Transmission Jammer > --- WEAPON ----------- Heavy EM Pulse Gun Heavy EM Pulse Gun > --- INVENTORY -------- Protomatter Long-range Tractor Beam Grenade Launcher Mining Laser Plasma Cutter [Rating: 22] Favorites ----------- Power Ion Engine Engine Ion Engine Propulsion Light Treads Treads Light Treads Leg Aluminum Leg Flight Unit Flight Unit Utility Improved Terrain Scanner Device Improved Terrain Scanner Processor Improved Signal Interpreter Weapon Heavy EM Pulse Gun Energy Gun Heavy EM Pulse Gun Energy Cannon Light EM Pulse Cannon Ballistic Gun Assault Rifle Ballistic Cannon Light Cannon Special Weapon Mining Laser Build | -11 -10 -10 -9 -9 -9 -8 -8 ------- Run | Scr Mat Min Mat Min Exi Min Mat Slots Evolved 5 | . 3 1 . . 1 . . Power . | . . . . . . . . Propulsion . | . . . . . . . . Utility 4 | . 2 1 . . 1 . . Weapon 1 | . 1 . . . . . . Parts Attached 35 | 2 13 . 15 . 2 2 1 Power . | . . . . . . . . Engine . | . . . . . . . . Core . | . . . . . . . . Reactor . | . . . . . . . . Propulsion 7 | 1 2 . 1 . . 2 1 Treads 5 | 1 1 . 1 . . 1 1 Leg . | . . . . . . . . Wheel . | . . . . . . . . Hover . | . . . . . . . . Flight 2 | . 1 . . . . 1 . Utility 6 | 1 2 . 1 . 2 . . Device 5 | 1 1 . 1 . 2 . . Storage . | . . . . . . . . Processor 1 | . 1 . . . . . . Hackware . | . . . . . . . . Protection . | . . . . . . . . Artifact . | . . . . . . . . Weapon 22 | . 9 . 13 . . . . Energy Gun 8 | . . . 8 . . . . Energy Cannon 6 | . 4 . 2 . . . . Ballistic Gun 1 | . . . 1 . . . . Ballistic Cannon 2 | . 2 . . . . . . Launcher . | . . . . . . . . Special Weapon 5 | . 3 . 2 . . . . Impact Weapon . | . . . . . . . . Slashing Weapon . | . . . . . . . . Piercing Weapon . | . . . . . . . . Special Melee Weapon . | . . . . . . . . Unidentified Prototypes 3 | . . . 3 . . . . Parts Lost 1 | . . . . . . . 1 Power . | . . . . . . . . Propulsion . | . . . . . . . . Utility . | . . . . . . . . Weapon 1 | . . . . . . . 1 Highest Loss Streak 1 | . . . . . . . 1 Average Slot Usage (%) 98 | . 98 96 98 100 100 99 99 Engine 13 | . 17 13 12 12 11 11 11 Treads 13 | . 17 13 12 12 11 10 11 Device 33 | . 25 27 36 37 42 44 44 Processor 8 | . . 13 12 12 11 11 11 Energy Gun 10 | . . . 17 25 22 22 21 Energy Cannon 13 | . 24 27 4 . . . . Ballistic Gun 1 | . 4 . . . . . . Special Weapon 1 | . 3 . 1 . . . . Naked Turns . | . . . . . . . . Heaviest Build 23 | 8 15 15 16 14 23 23 23 Greatest Support 42 | 10 13 13 18 18 18 23 42 Greatest Overweight (x) 1 | . 1 1 1 . 1 1 . Average Overweight (x) . | . . 1 . . . . . Largest Inventory Capacity 5 | 2 2 3 5 5 5 5 5 Average Capacity 3 | 1 2 2 3 5 5 5 5 Most Carried 5 | 2 2 2 5 5 5 5 5 Average Carried 3 | . 1 2 3 5 5 4 5 Final Capacity 5 | 2 2 3 5 5 5 5 5 Final Carried 5 | 2 2 2 5 5 5 5 5 Class Distribution -------------------- 69% | Hacker-Skirmisher 16% | Hacker-Mutant 11% | Hacker-Scout Dominant Class ---------------- Hacker-Mutant | -10/Materials Hacker-Skirmisher | -10/Mines Hacker-Skirmisher | -9/Materials Hacker-Skirmisher | -9/Mines Hacker-Skirmisher | -9/Exiles Hacker-Skirmisher | -8/Mines Hacker-Skirmisher | -8/Materials Resources | -11 -10 -10 -9 -9 -9 -8 -8 ----------- Run | Scr Mat Min Mat Min Exi Min Mat Matter Collected 778 | 310 268 . 140 . . 30 30 Remotely . | . . . . . . . . Salvage Created 2992 | 155 813 330 1274 . . 252 168 Parts 183 | 17 42 14 91 . . 12 7 Haulers Intercepted 5 | . 2 . 3 . . . . Recyclers Shooed 1 | . 1 . . . . . . Parts Field Recycled . | . . . . . . . . Retrieved Matter . | . . . . . . . . Parts Self-Destructed . | . . . . . . . . Prevented . | . . . . . . . . Kills | -11 -10 -10 -9 -9 -9 -8 -8 ------- Run | Scr Mat Min Mat Min Exi Min Mat Combat Hostiles Destroyed 55 | . 14 4 26 . . 8 3 Guns 26 | . 1 . 15 . . 7 3 Cannons 20 | . 11 4 5 . . . . AOE 5 | . . . 5 . . . . Classes Destroyed 11 | 2 5 1 2 . . 1 . Worker 5 | . 1 1 3 . . . . Builder 3 | . . 1 2 . . . . Tunneler 7 | 5 1 1 . . . . . Hauler 5 | . 2 . 3 . . . . Recycler 3 | 1 1 1 . . . . . Operator 2 | . . . 2 . . . . Watcher 8 | . 3 . 5 . . . . Swarmer 12 | . 3 2 4 . . 3 . Grunt 32 | . 11 2 15 . . 3 1 Sentry 9 | . . . 7 . . . 2 Hunter 2 | . . . . . . 2 . Best Kill Streak 6 | 5 4 2 6 . . 3 1 Combat Bots Only 5 | . 4 2 5 . . 3 1 Max Kills in Single Turn 3 | 1 1 1 3 . . 1 1 Gunslinging 1 | . . . 1 . . . . Exploded 2 | . . . 2 . . . . Melee . | . . . . . . . . Uniques/NPCs Destroyed . | . . . . . . . . Combat | -11 -10 -10 -9 -9 -9 -8 -8 -------- Run | Scr Mat Min Mat Min Exi Min Mat Damage Taken 2257 | . 363 111 936 . . 487 360 Core 1818 | . 292 90 746 . . 392 298 Absorbed by Shields . | . . . . . . . . Redirected to Core 1484 | . 240 72 643 . . 309 220 Core Remaining (%) 82 | 100 . 98 . . . 49 . Volleys Fired 286 | 30 71 26 111 . . 30 18 Largest 2 | 1 2 2 2 . . 2 2 Hottest 120 | 20 120 112 112 . . 90 90 Shots Fired 510 | 30 126 52 209 . . 60 33 Gun 287 | 30 22 . 142 . . 60 33 Cannon 202 | . 96 52 54 . . . . Launcher . | . . . . . . . . Special 21 | . 8 . 13 . . . . Kinetic 70 | 30 40 . . . . . . Thermal 21 | . 8 . 13 . . . . Explosive . | . . . . . . . . Electromagnetic 419 | . 78 52 196 . . 60 33 Robot Hit Streak 22 | 7 12 11 22 . . 14 10 Robot Miss Streak 6 | 2 3 2 6 . . 3 3 Penetration Max . | . . . . . . . . Secondary Targets 4 | . . . 2 . . 1 1 Max Gunslinging Chain 1 | . . . 1 . . 1 1 Shots Hit Robots 272 | 21 55 29 113 . . 36 18 Core Hits 109 | 7 26 8 49 . . 12 7 Critical Hits 2 | . 1 1 . . . . . Critical Kills 2 | . 1 1 . . . . . Critical Parts Destroyed . | . . . . . . . . Melee Attacks . | . . . . . . . . Impact . | . . . . . . . . Slashing . | . . . . . . . . Piercing . | . . . . . . . . Sneak Attacks . | . . . . . . . . Combat Hostiles . | . . . . . . . . Follow-up Attacks . | . . . . . . . . Damage Inflicted 5554 | 259 1313 656 2575 . . 489 262 Guns 2366 | 259 210 . 1146 . . 489 262 Cannons 2506 | . 916 656 934 . . . . Explosions 653 | . 158 . 495 . . . . Melee . | . . . . . . . . Ramming 5 | . 5 . . . . . . Kinetic 608 | 259 349 . . . . . . Thermal 677 | . 182 . 495 . . . . Explosive . | . . . . . . . . Electromagnetic 4264 | . 777 656 2080 . . 489 262 Impact . | . . . . . . . . Slashing . | . . . . . . . . Piercing . | . . . . . . . . Highest Corruption . | . . . . . . . . Average Corruption . | . . . . . . . . Corruption Purged . | . . . . . . . . Overload Shots . | . . . . . . . . Overflow Damage 152 | . 5 40 107 . . . . Projectiles 121 | . . 40 81 . . . . Explosions 31 | . 5 . 26 . . . . Melee . | . . . . . . . . Knockbacks 1 | . 1 . . . . . . Impact . | . . . . . . . . Kinetic 1 | . 1 . . . . . . Secondary . | . . . . . . . . Self-Inflicted Damage 98 | . 66 . 32 . . . . Shots 4 | . 2 . 2 . . . . Rammed 1 | . 1 . . . . . . Targets Rammed 1 | . 1 . . . . . . Kicked . | . . . . . . . . Crushed . | . . . . . . . . Highest Temperature 225 | . 159 225 66 . . 12 32 Average Temperature 39 | . 43 66 18 . . 6 13 Received Heat Transfer 633 | . 120 30 294 . . 54 135 Siege Activations . | . . . . . . . . Robots Corrupted 4 | . 2 . 1 . . 1 . Combat Hostiles 4 | . 2 . 1 . . 1 . Parts Fried 20 | . 5 2 13 . . . . Impact Corruptions . | . . . . . . . . Robots Melted . | . . . . . . . . Combat Hostiles . | . . . . . . . . Parts Melted . | . . . . . . . . Heat Transferred 800 | . 250 . 550 . . . . Parts Sabotaged . | . . . . . . . . Parts Stolen . | . . . . . . . . Parts Stripped . | . . . . . . . . Power Chain Reactions 9 | . 4 . 5 . . . . Missiles Intercepted . | . . . . . . . . Alert | -11 -10 -10 -9 -9 -9 -8 -8 ------- Run | Scr Mat Min Mat Min Exi Min Mat Peak Influence 635 | 30 272 160 635 86 . 301 277 Average Influence 183 | 12 116 92 322 86 . 162 185 Maximum Alert Level 2 | . 1 . 2 . . 1 1 Low Security (%) 59 | 100 74 100 16 100 . 75 48 Level 1 31 | . 25 . 55 . . 24 51 Level 2 9 | . . . 28 . . . . Level 3 . | . . . . . . . . Level 4 . | . . . . . . . . Level 5 . | . . . . . . . . High Security . | . . . . . . . . Max Security . | . . . . . . . . Squads Dispatched 7 | . 3 . 4 . . . . Investigation 5 | . 3 . 2 . . . . Extermination . | . . . . . . . . Reinforcement 2 | . . . 2 . . . . Assault . | . . . . . . . . Garrison . | . . . . . . . . Intercept . | . . . . . . . . Construction Impeded . | . . . . . . . . Haulers Reinforced . | . . . . . . . . Stealth | -11 -10 -10 -9 -9 -9 -8 -8 --------- Run | Scr Mat Min Mat Min Exi Min Mat Distress Signals 5 | . . . 4 . . . 1 Communications Jammed 2 | . . . . . . . 2 Distress Signals 2 | . . . . . . . 2 Times Spotted 92 | . 22 9 43 . . 11 7 Peak Tracking Total 6 | . 5 3 6 . . 3 3 Tactical Retreats 7 | . 3 2 2 . . . . Traps | -11 -10 -10 -9 -9 -9 -8 -8 ------- Run | Scr Mat Min Mat Min Exi Min Mat Traps Triggered 1 | . 1 . . . . . . Indirectly . | . . . . . . . . Trap Hack Attempts . | . . . . . . . . Triggered . | . . . . . . . . Disarmed . | . . . . . . . . Reprogrammed 6 | . . . 6 . . . . Reused . | . . . . . . . . Traps Extracted . | . . . . . . . . Installed . | . . . . . . . . Triggered . | . . . . . . . . Machines | -11 -10 -10 -9 -9 -9 -8 -8 ---------- Run | Scr Mat Min Mat Min Exi Min Mat Machines Disabled 42 | . 14 5 17 . . 3 3 Max in Single Turn 2 | . 2 1 2 . . 1 1 Garrison Access 1 | . . . . . . . 1 Machines Sabotaged . | . . . . . . . . Garrisons Compromised . | . . . . . . . . Overloaded Fab Kills . | . . . . . . . . Fab Network Shutdowns . | . . . . . . . . Hacking | -11 -10 -10 -9 -9 -9 -8 -8 --------- Run | Scr Mat Min Mat Min Exi Min Mat Machines Accessed 24 | . 7 . 12 . 1 . 4 Terminals 16 | . 5 . 9 . . . 2 Fabricators . | . . . . . . . . Repair Stations 1 | . . . 1 . . . . Recycling Units 4 | . 2 . 2 . . . . Scanalyzers 1 | . . . . . . . 1 Garrison Access 1 | . . . . . . . 1 Total Hacks 95 | . 24 . 52 . 1 . 18 Successful 61 | . 11 . 36 . 1 . 13 Failed 34 | . 13 . 16 . . . 5 Catastrophic 1 | . 1 . . . . . . Database Lockouts . | . . . . . . . . Manual 61 | . 24 . 30 . . . 7 Terminals 81 | . 21 . 48 . . . 12 Fabricators . | . . . . . . . . Repair Stations 2 | . . . 2 . . . . Recycling Units 5 | . 3 . 2 . . . . Scanalyzers 4 | . . . . . . . 4 Garrison Access 2 | . . . . . . . 2 Terminal Hacks 27 | . 2 . 20 . 1 . 4 Record 1 | . . . . . 1 . . Robot Analysis 1 | . . . 1 . . . . Prototype ID Bank 2 | . . . 2 . . . . Level Access Points 1 | . . . 1 . . . . Branch Access Points 2 | . . . 1 . . . 1 Terminal Index 2 | . . . 1 . . . 1 Unreport Threat 6 | . 2 . 4 . . . . Locate Traps 4 | . . . 3 . . . 1 Reprogram Traps 1 | . . . 1 . . . . Recall Investigation 2 | . . . 2 . . . . Recall Reinforcements 1 | . . . 1 . . . . Hauler Manifests 1 | . . . . . . . 1 Zone Layout 3 | . . . 3 . . . . Fabricator Hacks . | . . . . . . . . Repair Station Hacks 2 | . . . 2 . . . . Scan Component 1 | . . . 1 . . . . Repair 1 | . . . 1 . . . . Recycling Unit Hacks . | . . . . . . . . Scanalyzer 4 | . . . . . . . 4 Insert Component 2 | . . . . . . . 2 Analyze 2 | . . . . . . . 2 Garrison Access Hacks 1 | . . . . . . . 1 Seal Access 1 | . . . . . . . 1 Unauthorized Hacks 27 | . 9 . 14 . . . 4 Terminals 23 | . 7 . 12 . . . 4 Track 6 | . 2 . 3 . . . 1 Assimilate 2 | . . . 2 . . . . Botnet 11 | . 4 . 5 . . . 2 Operators 4 | . 1 . 2 . . . 1 Fabricators . | . . . . . . . . Repair Stations . | . . . . . . . . Recycling Units 4 | . 2 . 2 . . . . Tunnel 4 | . 2 . 2 . . . . Scanalyzers . | . . . . . . . . Garrison Access . | . . . . . . . . Data Cores Recovered . | . . . . . . . . Used . | . . . . . . . . Hacking Detections 14 | . 5 . 7 . . . 2 Full Trace Events . | . . . . . . . . Feedback Events . | . . . . . . . . Feedback Blocked . | . . . . . . . . Robot Schematics Acquired . | . . . . . . . . Robots Built . | . . . . . . . . Matter . | . . . . . . . . Time . | . . . . . . . . Total Robot Build Rating . | . . . . . . . . Part Schematics Acquired 2 | . . . . . . . 2 Parts Built . | . . . . . . . . Matter . | . . . . . . . . Time . | . . . . . . . . Total Part Build Rating . | . . . . . . . . Parts Repaired 1 | . . . 1 . . . . Time 32 | . . . 32 . . . . Parts Recycled . | . . . . . . . . Recycled Matter . | . . . . . . . . Retrieved Matter . | . . . . . . . . Retrieved Components . | . . . . . . . . Parts Scanalyzed 2 | . . . . . . . 2 Part Schematics Acquired 2 | . . . . . . . 2 Parts Damaged . | . . . . . . . . Bothacking | -11 -10 -10 -9 -9 -9 -8 -8 ------------ Run | Scr Mat Min Mat Min Exi Min Mat Used RIF Installer . | . . . . . . . . Robots Hacked . | . . . . . . . . Non-combat . | . . . . . . . . Combat . | . . . . . . . . Robot Hacks Applied . | . . . . . . . . Relay Couplers Released . | . . . . . . . . Robots Rewired 2 | . . . . . 2 . . Allies Hacked . | . . . . . . . . Hacks Repelled . | . . . . . . . . Allies | -11 -10 -10 -9 -9 -9 -8 -8 -------- Run | Scr Mat Min Mat Min Exi Min Mat Total Allies 6 | . . 2 2 . 2 . . Largest Group 4 | . . 2 2 2 4 4 1 Highest-Rated Group 49 | . . 42 42 20 49 49 10 Highest-Rated Ally 31 | . . 31 31 10 21 21 10 Total Orders 5 | . . . . . . 3 2 GOTO 3 | . . . . . . 2 1 FOLLOW 2 | . . . . . . 1 1 Ally Attacks 39 | . . 24 1 . . 14 . Total Damage 591 | . . 354 21 . . 216 . Kills 7 | . . 3 1 . . 3 . Allies Corrupted . | . . . . . . . . Allies Melted . | . . . . . . . . Intel | -11 -10 -10 -9 -9 -9 -8 -8 ------- Run | Scr Mat Min Mat Min Exi Min Mat Robot Analysis Total 1 | . . . 1 . . . . Derelict Logs Recovered 1 | . . 1 . . . . . Drone Launches . | . . . . . . . . Drone Recoveries . | . . . . . . . . Exploration | -11 -10 -10 -9 -9 -9 -8 -8 ------------- Run | Scr Mat Min Mat Min Exi Min Mat Turns Passed 4112 | 92 1217 657 1200 19 335 393 199 Spaces Moved 3199 | 50 897 534 904 32 375 285 122 Core 3113 | 48 897 534 904 32 375 285 38 Treads 84 | . . . . . . . 84 Legs 2 | 2 . . . . . . . Wheels . | . . . . . . . . Hover . | . . . . . . . . Flight . | . . . . . . . . Fastest Speed 50 | 50 50 100 50 50 50 50 50 Average Speed 88 | 52 98 100 71 50 82 95 115 Slowest Speed 145 | 120 100 100 100 50 100 100 145 Overloaded Moves . | . . . . . . . . Propulsion Burnouts . | . . . . . . . . Robots Hopped . | . . . . . . . . Cave-ins Triggered . | . . . . . . . . Exploration Rate (%) 55 | 4 98 92 74 14 90 54 16 Regions Visited 7 Branch Regions 4 Pre-discovered Areas 7 | . 2 2 2 . 1 . . Known Exits Taken 6 | . 1 1 1 1 1 1 . Unknown Exits Taken 1 | 1 . . . . . . . Scrap Searched 1 | . . 1 . . . . . Spaces Dug 14 | . 5 . 9 . . . . Terrain Destroyed 246 | . 155 9 68 . . 14 . Melee . | . . . . . . . . Projectile 15 | . 5 . 10 . . . . AOE 231 | . 150 9 58 . . 14 . Actions | -11 -10 -10 -9 -9 -9 -8 -8 --------- Run | Scr Mat Min Mat Min Exi Min Mat Total 3922 | 84 1082 605 1222 34 402 345 148 Wait 281 | . 77 38 133 3 7 19 4 Move 3192 | 49 896 533 903 31 374 284 122 Hop . | . . . . . . . . Pick Up 11 | 2 2 . 5 . . 1 1 Fast Attach 20 | 2 6 . 9 . 1 2 . Attach 1 | . 1 . . . . . . Detach . | . . . . . . . . Swap 14 | . 6 . 6 . 1 . 1 Drop 22 | 1 6 . 9 . 1 3 2 Fire 286 | 30 71 26 111 . . 30 18 Melee . | . . . . . . . . Ram 1 | . 1 . . . . . . Kick . | . . . . . . . . Crush . | . . . . . . . . Escape Stasis . | . . . . . . . . Rewire 19 | . 1 . . . 18 . . Trap . | . . . . . . . . Miscellaneous 75 | . 15 8 46 . . 6 . Route ------- -11/Scrapyard -10/Materials (discovered 5 exits: *Mat x3 / *Min x2) -10/Mines (discovered 2 exits: *Mat x2) -9/Materials (discovered 5 exits: *Mat x3 / *Min x2) -9/Mines (discovered 2 exits: *Mat / *Exi) -9/Exiles (discovered 2 exits: *Min x2) -8/Mines -8/Materials History --------- Turn | Location | Event 29 | -11/Scrapyard | Discovered new exit (range 1) 93 | -11/Scrapyard | Entered Materials 106 | -10/Materials | Upgraded with Weapon slot (x1) 356 | -10/Materials | Discovered new exit (range 16) 416 | -10/Materials | Build established: Hacker-Mutant 451 | -10/Materials | Discovered new exit (range 14) 747 | -10/Materials | Discovered new exit (range 16) 761 | -10/Materials | Reached level 2 763 | -10/Materials | Upgraded with Utility slot (x1) 924 | -10/Materials | Discovered new exit (range 14) 962 | -10/Materials | Discovered new exit (range 10) 1052 | -10/Materials | Build established: Hacker-Skirmisher 1155 | -10/Materials | Reached level 3 1161 | -10/Materials | Upgraded with Utility slot (x1) 1254 | -10/Materials | Identified exit to Mines 1310 | -10/Materials | Entered Mines 1371 | -10/Mines | Received a Rocket Launcher from a helpful Derelict 1405 | -10/Mines | Discovered new exit (range 15) 1437 | -10/Mines | Discovered new exit (range 15) 1545 | -10/Mines | Identified exit to Materials 1768 | -10/Mines | Reached level 4 1772 | -10/Mines | Upgraded with Utility slot (x1) 1888 | -10/Mines | Learned location of Storage (-7) 1967 | -10/Mines | Entered Materials 1967 | -9/Materials | Accompanied by 2 allies 1969 | -9/Materials | Reached level 5 1972 | -9/Materials | Led the pair of lost Derelicts to an unsafe place 2130 | -9/Materials | Identified exit to Mines 2147 | -9/Materials | Reached level 6 2202 | -9/Materials | Identified exit to Materials 2533 | -9/Materials | Reached level 7 2630 | -9/Materials | Repaired Hvy. EM Pulse Gun 2757 | -9/Materials | Reached level 8 3167 | -9/Materials | Entered Mines 3167 | -9/Mines | Accompanied by 2 allies 3172 | -9/Mines | Discovered exit to Materials (range 5) 3174 | -9/Mines | Discovered new exit (range 14) 3181 | -9/Mines | Deemed a non-threat by the Exiles lab entrance 3183 | -9/Mines | Identified exit to Exiles 3186 | -9/Mines | Entered Exiles 3186 | -9/Exiles | Found Exiles lab destroyed 3186 | -9/Exiles | Accompanied by 2 allies 3193 | -9/Exiles | Discovered new exit (range 15) 3200 | -9/Exiles | Identified exit to Mines 3256 | -9/Exiles | Upgraded with Utility slot (x1) 3467 | -9/Exiles | Learned location of Zion (-7) 3502 | -9/Exiles | Discovered exit to Mines (range 13) 3521 | -9/Exiles | Entered Mines 3521 | -8/Mines | Accompanied by 4 allies 3522 | -8/Mines | Reached level 9 3783 | -8/Mines | Reached level 10 3861 | -8/Mines | Core integrity fell below 50% 3905 | -8/Mines | Discovered exit to Materials (range 12) 3914 | -8/Mines | Entered Materials 3914 | -8/Materials | Accompanied by 1 ally 3915 | -8/Materials | Core integrity fell below 50% 3916 | -8/Materials | Reached level 11 4102 | -8/Materials | Core integrity fell below 20% 4113 | -8/Materials | Destroyed by Y-45 Defender with Heavy Assault Rifle Last Messages --------------- (2 escorts) A-02 Transporter 6x Imp. Light Cannon A-02 Transporter 1x Imp. Sensor Array 3x Lgt. EM Pulse Cannon 1x Imp. Aluminum Leg 04046_ Connecting with Terminal... >>Trojan(Botnet) Trojan loaded successfully. Testing... Terminal linked with 1 system. Awaiting botnet instructions. 04076_ Y-45 Defender destroyed. 04089_ Technician 2a reveals location of Alarm Trap. 04100_ G-47 Trooper misfires. 04102_ G-47 Trooper IFF system glitched. 04104_ G-47 Trooper destroyed. 04104_ Switching to secondary target: Y-45 Defender. 04107_ Hvy. EM Pulse Gun destroyed. Map ----- +----------------------------------------------------+ | ???? ## ###### ###?#?# """ # | | ?##? """ ## ####?# ####### / # ## | | ??## ?""" # ##### """ ####?## = # # | | ###? """ ? + ##### """ #?##### # # | | ###????"" # ##### """ ##########/##### # | | ?### """ # #########+## ##### # | | #### # # # T # | | #??# # # # #### ##### "" # | | ?##########?# # #u##### ###### G" # | | ############# # +%#?#?# #?#### u "" # | | # # + #=##### ##?### r u ## | | # """ """ # # # ##### ###### ## | | # " " "" + # # #####+####?# | | # "" ""k # ####### ### ? # =! | | # # ####### ### """ # !! | | ############# ####### ## "R"? # ######### | | ?#### # ###### ### " " # #???#?### | | ##### # = ##### ## # ##????##? | | ?#### + %* o ## """ + ###?????? | | ##### # ! ##### ## """ # ##??###?? | | ##### "T" # ###### ### """ # #???????? | | ##### ############ ### + ????????? | | ####################### ############?+#????????? | | #######?############### ##########?? ????????? | | ##?#?################## ####?##### ? ? ????????? | | #######################@########## k ? ???????? | | ################# ? #####??????? ????????? | | ###?############# ##?###?# ?? ????????? | | ?###?#?#?######## ###?####?? ? ????????? | | ??###########?### #######??? ? ????????? | | ??####??#######?# !%= ##?###?#? ? ????????? | | ??##?#???######## g !#####?#?? ?????????? | | ???#?????#?###?## ##?#?#?#??##?????????? | | ????#?#? ?###?### ###?####??#??????????? | | ????????Y? ?? #######Y#######?#??##????????????? | | ???????? ??## ##??#? a ##?####?#?#????????????? | | ????????????# ??###? ? ?###?##????????????????? | | ????????????? ? ? ? ?#?#?##??#?????????????? | | ??????????????????# ??#?#??##????????????????? | | ????????????????? ? ????###?#????????????????? | | ??????????????????## ???###?#??????????????????? | | ???????????????????????#???????????????????????? | | ????????????????????a??????????????????????????? | | ???????????????????????????????????????????????? | | ????????????????????g??????????????????????????? | | ???????????????????????????????????????????????? | | ???????????????????????????????????????????????? | | ???????????????????????????????????????????????? | | ???????????????????????????????????????????????? | | ???????????????????????????????????????????????? | +----------------------------------------------------+ Best States ------------- Heat Dissipation 37 Coolant Potential 50 Energy Generation 20 Energy Capacity 250 Matter Stores 300 Matter Capacity 300 Sight Range 17 Robot Scan Range 22 Terrain Scan Range 16 Terrain Scan Density 310 Jamming Range 14 Evasion (%) 50 Recoil Reduction 1 Offensive Hacking 10 Defensive Hacking 10 Item Schematics ----------------- Plasma Cutter | -8/Materials | Scanalyzed Grenade Launcher | -8/Materials | Scanalyzed Robot Schematics ------------------ None Fabricated ------------ Nothing Alien Tech Used ----------------- None Achievements -------------- None Challenges ------------ None RPGLIKE | -11 -10 -10 -9 -9 -9 -8 -8 --------- Run | Scr Mat Min Mat Min Exi Min Mat Levels Raised 10 | . 2 1 4 . . 2 1 XP Earned 18983 | 3000 3150 1817 6438 349 139 2157 1933 XP Spent 14990 | 1120 4400 1970 4500 . 1400 1600 . Upgrades 28 | 6 10 4 6 . 1 1 . Utility Slot 4 | . 2 1 . . 1 . . Weapon Slot 1 | . 1 . . . . . . Heat Dissipation 2 | . . 2 . . . . . Energy Generation 2 | . 1 . 1 . . . . Mass Support 4 | 1 1 . 1 . . 1 . Inventory Capacity 5 | 2 . 1 2 . . . . Sight Range 1 | . . . 1 . . . . Terrain Scan Density 3 | 3 . . . . . . . Ranged Accuracy 2 | . 1 . 1 . . . . Hack Attack % 2 | . 2 . . . . . . Hack Defense % 2 | . 2 . . . . . . Protomatter Created 797 | . 150 15 457 . . 125 50 Integrity Restored 1499 | . 298 150 948 . . 103 . Core 1217 | . 249 122 757 . . 89 . Parts 282 | . 49 28 191 . . 14 . Protomatter Decayed 291 | . 47 . 80 . . 164 . Game ------ Seed StorageChargeCore Manual? 0 Play Time 01:00:00 Cumulative 231.6 hours Start 2020.06.22 @ 15:56:39 End 2020.06.22 @ 16:55:07 Sessions 1 Manual Loads 0 Difficulty Rogue Special Mode Winter2019/RPGLIKE Game No. 303 Rogue 292 Adventurer 11 Explorer 0 Win Type - Total 0 Types 0/0/0/0/0/0/0 Lore% 53 Gallery% 67 Achievement% 45 Wizard Run 0 Options --------- ASCII 0 Keyboard 1 Movement Numpad Keybinds 0 Fullscreen 1 Font 12/Terminus Map View 83x54 Tactical HUD 1 Map Filters NONE Filters NONE Steam X RUN: 88798066-e716-4aa3-ad9b-4cb4503da4bf